fUSD/lending_fUSD_20250623
["ID","MTS","AMOUNT","RATE_DAILY","PERIOD"]
[367108119,1750662651057,-490.0,0.00027397,3]
[367108120,1750662651066,-490.0,0.00027397,3]
[367108121,1750662651076,-529.91,0.00027397,3]
[367108122,1750662651088,-490.0,0.00027397,3]
[367108123,1750662651098,-490.0,0.00027397,3]
[367108124,1750662651107,-490.0,0.00027397,3]
[367108125,1750662651118,-490.0,0.00027397,3]
[367108126,1750662651127,-490.0,0.00027397,3]
[367108128,1750662651136,-490.0,0.00027397,3]
[367108130,1750662651146,-788.62,0.00027397,3]
[367108132,1750662651155,-912.47,0.00027397,3]
[367108134,1750662651165,-1251.29,0.00027397,3]
[367108136,1750662651174,-675.57,0.00027397,3]
[367108138,1750662651183,-491.53547859,0.00027397,3]
[367108140,1750662651193,-490.0,0.00027397,3]
[367108141,1750662651202,-655.66,0.00027397,3]
[367108142,1750662651211,-490.0,0.00027397,3]
[367108143,1750662651222,-181.13951866,0.00027397,3]
[367108144,1750662651232,-490.0,0.00027397,3]
[367108145,1750662651241,-300.0,0.00027397,3]
[367108146,1750662651250,-492.25410079,0.00027397,3]
[367108147,1750662651260,-490.0,0.00027397,3]
[367108148,1750662651270,-490.0,0.00027397,3]
[367108149,1750662651279,-490.0,0.00027397,3]
[367108150,1750662651289,-490.0,0.00027397,3]
[367108151,1750662651298,-1664.2,0.00027397,3]
[367108152,1750662651308,-1679.9,0.00027397,3]
[367108153,1750662651318,-490.0,0.00027397,3]
[367108154,1750662651327,-1433.27,0.00027397,3]
[367108155,1750662651337,-490.0,0.00027397,3]
[367108156,1750662651346,-596.22602946,0.00027397,3]
[367108157,1750662651356,-490.0,0.00027397,3]
[367108158,1750662651365,-1066.4,0.00027397,3]
[367108159,1750662651374,-491.63655973,0.00027397,3]
[367108160,1750662651383,-490.0,0.00027397,3]
[367108161,1750662651393,-491.39750676,0.00027397,3]
[367108162,1750662651403,-490.76370165,0.00027397,3]
[367108163,1750662651412,-572.95,0.00027397,3]
[367108164,1750662651421,-490.0,0.00027397,3]
[367108165,1750662651431,-490.0,0.00027397,3]
[367108166,1750662651440,-1605.51,0.00027397,3]
[367108167,1750662651450,-490.0,0.00027397,3]
[367108168,1750662651459,-245.57662994,0.00027397,3]
[367108169,1750662651469,-490.0,0.00027397,3]
[367108170,1750662651479,-490.0,0.00027397,3]
[367108171,1750662651489,-1690.95,0.00027397,3]
[367108172,1750662651499,-1674.28,0.00027397,3]
[367108173,1750662651513,-490.0,0.00027397,3]
[367108174,1750662651523,-490.0,0.00027397,3]
[367108175,1750662651532,-490.0,0.00027397,3]
[367108176,1750662651541,-490.0,0.00027397,3]
[367108177,1750662651550,-490.0,0.00027397,3]
[367108178,1750662651560,-490.0,0.00027397,3]
[367108179,1750662651570,-490.0,0.00027397,3]
[367108180,1750662651580,-490.0,0.00027397,3]
[367108181,1750662651589,-490.0,0.00027397,3]
[367108182,1750662651600,-490.0,0.00027397,3]
[367108183,1750662651610,-490.0,0.00027397,3]
[367108184,1750662651619,-638.77,0.00027397,3]
[367108185,1750662651629,-282.50864154,0.00027397,3]
[367108186,1750662651638,-490.0,0.00027397,3]
[367108187,1750662651647,-1574.11,0.00027397,3]
[367108188,1750662651657,-500.0,0.00027397,3]
[367108189,1750662651666,-378.81,0.00027397,3]
[367108190,1750662651675,-684.38,0.00027397,3]
[367108191,1750662651685,-491.88651684,0.00027397,3]
[367108192,1750662651694,-490.0,0.00027397,3]
[367108193,1750662651703,-1278.36,0.00027397,3]
[367108194,1750662651713,-490.0,0.00027397,3]
[367108195,1750662651723,-905.6,0.00027397,3]
[367108196,1750662651733,-490.0,0.00027397,3]
[367108197,1750662651742,-1682.39,0.00027397,3]
[367108199,1750662651751,-1410.38,0.00027397,3]
[367108201,1750662651761,-1126.22,0.00027397,3]
[367108203,1750662651770,-490.0,0.00027397,3]
[367108205,1750662651780,-490.0,0.00027397,3]
[367108207,1750662651790,-1883.69,0.00027397,3]
[367108209,1750662651799,-500.0,0.00027397,3]
[367108210,1750662651809,-490.0,0.00027397,3]
[367108212,1750662651818,-500.0,0.00027397,3]
[367108214,1750662651828,-490.0,0.00027397,3]
[367108216,1750662651837,-500.0,0.00027397,3]
[367108217,1750662651847,-500.0,0.00027397,3]
[367108218,1750662651856,-500.0,0.00027397,3]
[367108219,1750662651865,-500.0,0.00027397,3]
[367108220,1750662651874,-7415.21,0.00027397,3]
[367108221,1750662651884,-500.0,0.00027397,3]
[367108222,1750662651893,-500.0,0.00027397,3]
[367108223,1750662651902,-500.0,0.00027397,3]
[367108224,1750662651911,-500.0,0.00027397,3]
[367108225,1750662651920,-500.0,0.00027397,3]
[367108226,1750662651929,-331.04326036,0.00027397,3]
[367108227,1750662651939,-500.0,0.00027397,3]
[367108228,1750662651948,-2332.56,0.00027397,3]
[367108229,1750662651957,-490.0,0.00027397,3]
[367108230,1750662651967,-490.0,0.00027397,3]
[367108231,1750662651976,-490.0,0.00027397,3]
[367108232,1750662651985,-500.0,0.00027397,3]
[367108233,1750662651994,-500.0,0.00027397,3]
[367108234,1750662652004,-490.0,0.00027397,3]
[367108235,1750662652013,-500.0,0.00027397,3]
[367108236,1750662652022,-1248.93,0.00027397,3]
[367108237,1750662652032,-500.0,0.00027397,3]
[367108238,1750662652041,-500.0,0.00027397,3]
[367108239,1750662652050,-500.0,0.00027397,3]
[367108240,1750662652061,-491.35216683,0.00027397,3]
[367108241,1750662652071,-500.0,0.00027397,3]
[367108242,1750662652080,-490.0,0.00027397,3]
[367108243,1750662652090,-500.0,0.00027397,3]
[367108244,1750662652099,-1449.04,0.00027397,3]
[367108245,1750662652108,-500.0,0.00027397,3]
[367108246,1750662652118,-500.0,0.00027397,3]
[367108247,1750662652127,-500.0,0.00027397,3]
[367108248,1750662652137,-500.0,0.00027397,3]
[367108249,1750662652147,-500.0,0.00027397,3]
[367108250,1750662652156,-500.0,0.00027397,3]
[367108251,1750662652166,-500.0,0.00027397,3]
[367108252,1750662652175,-849.69,0.00027397,3]
[367108253,1750662652185,-490.0,0.00027397,3]
[367108254,1750662652195,-883.32,0.00027397,3]
[367108255,1750662652204,-490.0,0.00027397,3]
[367108256,1750662652213,-587.88,0.00027397,3]
[367108257,1750662652222,-491.20809093,0.00027397,3]
[367108258,1750662652232,-901.3,0.00027397,3]
[367108259,1750662652242,-490.0,0.00027397,3]
[367108260,1750662652252,-490.0,0.00027397,3]
[367108261,1750662652261,-1164.04,0.00027397,3]
[367108262,1750662652270,-490.0,0.00027397,3]
[367108263,1750662652280,-1753.14,0.00027397,3]
[367108264,1750662652289,-490.0,0.00027397,3]
[367108265,1750662652298,-4073.96,0.00027397,3]
[367108266,1750662652310,-10399.38,0.00027397,3]
[367108267,1750662652320,-490.0,0.00027397,3]
[367108268,1750662652329,-500.0,0.00027397,3]
[367108269,1750662652338,-580.67,0.00027397,3]
[367108270,1750662652348,-500.0,0.00027397,3]
[367108271,1750662652358,-500.0,0.00027397,3]
[367108272,1750662652367,-490.0,0.00027397,3]
[367108273,1750662652376,-1448.46,0.00027397,3]
[367108274,1750662652386,-500.0,0.00027397,3]
[367108275,1750662652396,-836.73,0.00027397,3]
[367108276,1750662652406,-500.0,0.00027397,3]
[367108277,1750662652415,-500.0,0.00027397,3]
[367108278,1750662652425,-500.0,0.00027397,3]
[367108279,1750662652434,-500.0,0.00027397,3]
[367108280,1750662652443,-500.0,0.00027397,3]
[367108281,1750662652452,-918.93,0.00027397,3]
[367108282,1750662652461,-500.0,0.00027397,3]
[367108283,1750662652471,-1355.08,0.00027397,3]
[367108284,1750662652485,-500.0,0.00027397,3]
[367108285,1750662652494,-526.35,0.00027397,3]
[367108286,1750662652505,-500.0,0.00027397,3]
[367108287,1750662652516,-500.0,0.00027397,3]
[367108288,1750662652525,-490.0,0.00027397,3]
[367108289,1750662652535,-6824.52,0.00027397,3]
[367108290,1750662652544,-490.0,0.00027397,3]
[367108291,1750662652557,-490.0,0.00027397,3]
[367108292,1750662652566,-1900.51,0.00027397,3]
[367108293,1750662652575,-490.0,0.00027397,3]
[367108294,1750662652584,-1016.76,0.00027397,3]
[367108295,1750662652594,-490.0,0.00027397,3]
[367108296,1750662652603,-490.0,0.00027397,3]
[367108297,1750662652613,-3401.6,0.00027397,3]
[367108298,1750662652623,-490.0,0.00027397,3]
[367108299,1750662652634,-3966.47,0.00027397,3]
[367108300,1750662652643,-603.14433216,0.00027397,3]
[367108301,1750662652654,-1741.72,0.00027397,3]
[367108302,1750662652663,-492.83231045,0.00027397,3]
[367108303,1750662652672,-490.0,0.00027397,3]
[367108304,1750662652681,-490.0,0.00027397,3]
[367108305,1750662652690,-490.0,0.00027397,3]
[367108306,1750662652700,-490.0,0.00027397,3]
[367108307,1750662652709,-490.0,0.00027397,3]
[367108308,1750662652719,-909.73,0.00027397,3]
[367108309,1750662652728,-608.52,0.00027397,3]
[367108310,1750662652738,-490.0,0.00027397,3]
[367108311,1750662652747,-490.0,0.00027397,3]
[367108312,1750662652756,-934.07,0.00027397,3]
[367108313,1750662652765,-4949.36,0.00027397,3]
[367108314,1750662652775,-490.0,0.00027397,3]
[367108315,1750662652783,-490.0,0.00027397,3]
[367108316,1750662652793,-2915.88,0.00027397,3]
[367108317,1750662652802,-490.0,0.00027397,3]
[367108318,1750662652812,-490.0,0.00027397,3]
[367108319,1750662652822,-490.0,0.00027397,3]
[367108320,1750662652831,-490.0,0.00027397,3]
[367108321,1750662652840,-490.0,0.00027397,3]
[367108322,1750662652850,-490.82919113,0.00027397,3]
[367108323,1750662652859,-1585.93,0.00027397,3]
[367108324,1750662652869,-490.0,0.00027397,3]
[367108325,1750662652878,-490.0,0.00027397,3]
[367108326,1750662652887,-490.0,0.00027397,3]
[367108327,1750662652897,-18062.45,0.00027397,3]
[367108328,1750662652907,-490.0,0.00027397,3]
[367108329,1750662652917,-814.19,0.00027397,3]
[367108330,1750662652927,-3468.99,0.00027397,3]
[367108331,1750662652936,-490.0,0.00027397,3]
[367108332,1750662652945,-1570.58,0.00027397,3]
[367108333,1750662652954,-500.0,0.00027397,3]
[367108334,1750662652963,-490.0,0.00027397,3]
[367108335,1750662652973,-1672.97,0.00027397,3]
[367108336,1750662652982,-500.0,0.00027397,3]
[367108337,1750662652991,-500.0,0.00027397,3]
[367108338,1750662653001,-500.0,0.00027397,3]
[367108339,1750662653010,-500.0,0.00027397,3]
[367108340,1750662653019,-500.0,0.00027397,3]
[367108341,1750662653028,-500.0,0.00027397,3]
[367108342,1750662653038,-500.0,0.00027397,3]
[367108343,1750662653047,-490.0,0.00027397,3]
[367108344,1750662653056,-500.0,0.00027397,3]
[367108345,1750662653066,-798.22,0.00027397,3]
[367108346,1750662653075,-490.0,0.00027397,3]
[367108347,1750662653084,-490.0,0.00027397,3]
[367108348,1750662653093,-789.6,0.00027397,3]
[367108349,1750662653103,-500.0,0.00027397,3]
[367108350,1750662653112,-500.0,0.00027397,3]
[367108351,1750662653121,-1533.06,0.00027397,3]
[367108352,1750662653131,-1681.4,0.00027397,3]
[367108353,1750662653140,-490.8886346,0.00027397,3]
[367108354,1750662653149,-490.0,0.00027397,3]
[367108355,1750662653158,-490.0,0.00027397,3]
[367108356,1750662653167,-528.64,0.00027397,3]
[367108357,1750662653176,-490.0,0.00027397,3]
[367108358,1750662653185,-1108.02,0.00027397,3]
[367108359,1750662653194,-1980.76,0.00027397,3]
[367108360,1750662653204,-2594.4,0.00027397,3]
[367108361,1750662653213,-490.0,0.00027397,3]
[367108362,1750662653222,-490.0,0.00027397,3]
[367108363,1750662653232,-1019.18,0.00027397,3]
[367108364,1750662653242,-1623.55,0.00027397,3]
[367108365,1750662653251,-490.0,0.00027397,3]
[367108366,1750662653260,-490.0,0.00027397,3]
[367108367,1750662653269,-891.21,0.00027397,3]
[367108368,1750662653279,-3127.29,0.00027397,3]
[367108369,1750662653288,-1174.99,0.00027397,3]
[367108370,1750662653298,-309.24324884,0.00027397,3]
[367108371,1750662653308,-490.0,0.00027397,3]
[367108372,1750662653318,-533.93352536,0.00027397,3]
[367108373,1750662653327,-1569.21,0.00027397,3]
[367108374,1750662653337,-490.0,0.00027397,3]
[367108375,1750662653346,-490.24098512,0.00027397,3]
[367108376,1750662653356,-490.0,0.00027397,3]
[367108377,1750662653365,-490.0,0.00027397,3]
[367108378,1750662653374,-1940.59,0.00027397,3]
[367108379,1750662653384,-1749.09,0.00027397,3]
[367108380,1750662653394,-2329.34,0.00027397,3]
[367108381,1750662653403,-1830.85,0.00027397,3]
[367108382,1750662653413,-1700.21,0.00027397,3]
[367108383,1750662653423,-490.0,0.00027397,3]
[367108384,1750662653432,-2769.81,0.00027397,3]
[367108385,1750662653441,-637.21,0.00027397,3]
[367108386,1750662653450,-492.14391151,0.00027397,3]
[367108387,1750662653459,-490.0,0.00027397,3]
[367108388,1750662653468,-6713.02,0.00027397,3]
[367108389,1750662653477,-777.56,0.00027397,3]
[367108390,1750662653486,-221.17512557,0.00027397,3]
[367108391,1750662653495,-490.0,0.00027397,3]
[367108392,1750662653507,-490.0,0.00027397,3]
[367108393,1750662653516,-490.0,0.00027397,3]
[367108394,1750662653526,-2394.73,0.00027397,3]
[367108395,1750662653536,-1294.78,0.00027397,3]
[367108396,1750662653546,-826.09,0.00027397,3]
[367108397,1750662653556,-760.04,0.00027397,3]
[367108398,1750662653565,-490.0,0.00027397,3]
[367108399,1750662653575,-555.71,0.00027397,3]
[367108400,1750662653585,-490.0,0.00027397,3]
[367108401,1750662653595,-1626.24,0.00027397,3]
[367108402,1750662653604,-4056.64,0.00027397,3]
[367108403,1750662653614,-713.4,0.00027397,3]
[367108404,1750662653623,-490.0,0.00027397,3]
[367108405,1750662653632,-1498.64,0.00027397,3]
[367108406,1750662653641,-193.19673802,0.00027397,3]
[367108407,1750662653650,-1457.21,0.00027397,3]
[367108408,1750662653659,-490.0,0.00027397,3]
[367108409,1750662653668,-737.54,0.00027397,3]
[367108410,1750662653677,-493.88186259,0.00027397,3]
[367108411,1750662653686,-491.35116904,0.00027397,3]
[367108412,1750662653695,-490.0,0.00027397,3]
[367108413,1750662653704,-1307.83,0.00027397,3]
[367108414,1750662653713,-490.0,0.00027397,3]
[367108415,1750662653724,-728.06,0.00027397,3]
[367108416,1750662653734,-490.0,0.00027397,3]
[367108417,1750662653744,-490.0,0.00027397,3]
[367108418,1750662653753,-282.10101825,0.00027397,3]
[367108419,1750662653762,-490.0,0.00027397,3]
[367108420,1750662653772,-1832.35,0.00027397,3]
[367108421,1750662653781,-490.0,0.00027397,3]
[367108422,1750662653792,-1380.67,0.00027397,3]
[367108423,1750662653802,-490.0,0.00027397,3]
[367108424,1750662653813,-2228.14,0.00027397,3]
[367108425,1750662653822,-2372.02,0.00027397,3]
[367108426,1750662653831,-490.0,0.00027397,3]
[367108427,1750662653842,-490.0,0.00027397,3]
[367108428,1750662653851,-490.0,0.00027397,3]
[367108429,1750662653860,-788.8,0.00027397,3]
[367108430,1750662653869,-709.01,0.00027397,3]
[367108431,1750662653878,-3318.96,0.00027397,3]
[367108432,1750662653887,-862.45,0.00027397,3]
[367108433,1750662653897,-490.0,0.00027397,3]
[367108434,1750662653906,-1200.13,0.00027397,3]
[367108435,1750662653915,-1916.86,0.00027397,3]
[367108436,1750662653924,-490.0,0.00027397,3]
[367108437,1750662653934,-490.0,0.00027397,3]
[367108438,1750662653943,-490.0,0.00027397,3]
[367108439,1750662653952,-678.77,0.00027397,3]
[367108440,1750662653961,-1366.52,0.00027397,3]
[367108441,1750662653970,-4654.08,0.00027397,3]
[367108442,1750662653980,-788.62,0.00027397,3]
[367108443,1750662653989,-515.04,0.00027397,3]
[367108444,1750662653999,-553.78,0.00027397,3]
[367108445,1750662654007,-1578.33,0.00027397,3]
[367108446,1750662654017,-490.0,0.00027397,3]
[367108447,1750662654026,-490.0,0.00027397,3]
[367108448,1750662654035,-1107.26,0.00027397,3]
[367108449,1750662654044,-490.0,0.00027397,3]
[367108450,1750662654053,-490.0,0.00027397,3]
[367108451,1750662654063,-498.97,0.00027397,3]
[367108452,1750662654072,-7394.17,0.00027397,3]
[367108453,1750662654081,-490.0,0.00027397,3]
[367108454,1750662654090,-490.0,0.00027397,3]
[367108455,1750662654099,-1624.99,0.00027397,3]
[367108456,1750662654108,-2834.49,0.00027397,3]
[367108457,1750662654117,-1036.64,0.00027397,3]
[367108458,1750662654126,-490.0,0.00027397,3]
[367108459,1750662654136,-500.0,0.00027397,3]
[367108460,1750662654146,-490.0,0.00027397,3]
[367108461,1750662654155,-12536.04,0.00027397,3]
[367108462,1750662654165,-490.0,0.00027397,3]
[367108463,1750662654174,-490.0,0.00027397,3]
[367108464,1750662654184,-3543.99,0.00027397,3]
[367108465,1750662654193,-1768.62,0.00027397,3]
[367108466,1750662654202,-490.0,0.00027397,3]
[367108467,1750662654212,-1552.44,0.00027397,3]
[367108468,1750662654221,-497.45,0.00027397,3]
[367108469,1750662654230,-490.0,0.00027397,3]
[367108470,1750662654240,-490.0,0.00027397,3]
[367108471,1750662654249,-1947.91,0.00027397,3]
[367108472,1750662654258,-510.26,0.00027397,3]
[367108473,1750662654268,-1619.96,0.00027397,3]
[367108474,1750662654277,-510.41,0.00027397,3]
[367108475,1750662654286,-490.0,0.00027397,3]
[367108476,1750662654295,-490.66402268,0.00027397,3]
[367108477,1750662654305,-490.0,0.00027397,3]
[367108478,1750662654315,-5190.35,0.00027397,3]
[367108479,1750662654324,-9852.89,0.00027397,3]
[367108480,1750662654333,-490.0,0.00027397,3]
[367108481,1750662654343,-490.0,0.00027397,3]
[367108482,1750662654352,-500.0,0.00027397,3]
[367108483,1750662654362,-500.0,0.00027397,3]
[367108484,1750662654371,-490.0,0.00027397,3]
[367108485,1750662654380,-500.0,0.00027397,3]
[367108486,1750662654389,-515.89581016,0.00027397,3]
[367108487,1750662654399,-814.87,0.00027397,3]
[367108488,1750662654407,-2783.14,0.00027397,3]
[367108489,1750662654416,-542.83317753,0.00027397,3]
[367108490,1750662654426,-490.0,0.00027397,3]
[367108491,1750662654436,-1717.08,0.00027397,3]
[367108492,1750662654448,-490.0,0.00027397,3]
[367108493,1750662654460,-2330.84,0.00027397,3]
[367108494,1750662654472,-1630.26,0.00027397,3]
[367108495,1750662654483,-490.0,0.00027397,3]
[367108496,1750662654494,-752.02,0.00027397,3]
[367108497,1750662654507,-500.0,0.00027397,3]
[367108498,1750662654518,-490.0,0.00027397,3]
[367108499,1750662654530,-500.0,0.00027397,3]
[367108500,1750662654541,-500.0,0.00027397,3]
[367108501,1750662654553,-500.0,0.00027397,3]
[367108502,1750662654566,-500.0,0.00027397,3]
[367108503,1750662654577,-490.0,0.00027397,3]
[367108504,1750662654589,-500.0,0.00027397,3]
[367108505,1750662654602,-1618.67,0.00027397,3]
[367108506,1750662654614,-500.0,0.00027397,3]
[367108507,1750662654625,-490.0,0.00027397,3]
[367108508,1750662654636,-500.0,0.00027397,3]
[367108509,1750662654645,-1151.97,0.00027397,3]
[367108510,1750662654655,-915.84,0.00027397,3]
[367108511,1750662654667,-500.0,0.00027397,3]
[367108512,1750662654679,-670.37,0.00027397,3]
[367108513,1750662654691,-1776.65,0.00027397,3]
[367108514,1750662654704,-500.0,0.00027397,3]
[367108515,1750662654716,-500.0,0.00027397,3]
[367108516,1750662654728,-500.0,0.00027397,3]
[367108517,1750662654740,-500.0,0.00027397,3]
[367108518,1750662654752,-500.0,0.00027397,3]
[367108519,1750662654765,-500.0,0.00027397,3]
[367108520,1750662654777,-3986.65,0.00027397,3]
[367108521,1750662654788,-1960.82,0.00027397,3]
[367108522,1750662654801,-1591.01,0.00027397,3]
[367108523,1750662654814,-490.0,0.00027397,3]
[367108524,1750662654825,-490.0,0.00027397,3]
[367108525,1750662654837,-6065.53,0.00027397,3]
[367108526,1750662654849,-1605.38,0.00027397,3]
[367108527,1750662654860,-1642.63,0.00027397,3]
[367108528,1750662654871,-798.12,0.00027397,3]
[367108529,1750662654882,-490.0,0.00027397,3]
[367108530,1750662654894,-490.0,0.00027397,3]
[367108531,1750662654907,-490.0,0.00027397,3]
[367108532,1750662654919,-4219.23,0.00027397,3]
[367108533,1750662654931,-2292.5,0.00027397,3]
[367108534,1750662654942,-1292.66,0.00027397,3]
[367108535,1750662654955,-2903.63,0.00027397,3]
[367108536,1750662654966,-1562.1,0.00027397,3]
[367108537,1750662654976,-490.0,0.00027397,3]
[367108538,1750662654988,-765.43,0.00027397,3]
[367108539,1750662655000,-1872.32,0.00027397,3]
[367108540,1750662655011,-490.0,0.00027397,3]
[367108541,1750662655024,-490.0,0.00027397,3]
[367108542,1750662655038,-3240.53,0.00027397,3]
[367108543,1750662655048,-491.90419241,0.00027397,3]
[367108544,1750662655060,-492.32,0.00027397,3]
[367108545,1750662655070,-1499.13,0.00027397,3]
[367108546,1750662655080,-1684.89,0.00027397,3]
[367108547,1750662655091,-2262.37,0.00027397,3]
[367108548,1750662655102,-1822.31,0.00027397,3]
[367108549,1750662655114,-490.0,0.00027397,3]
[367108550,1750662655125,-185.22326792,0.00027397,3]
[367108551,1750662655137,-745.32,0.00027397,3]
[367108552,1750662655147,-490.0,0.00027397,3]
[367108553,1750662655158,-490.0,0.00027397,3]
[367108554,1750662655168,-490.0,0.00027397,2]
[367108555,1750662655178,-1565.33,0.00027397,3]
[367108556,1750662655190,-494.26590119,0.00027397,3]
[367108557,1750662655201,-1787.94,0.00027397,3]
[367108558,1750662655212,-3248.59,0.00027397,3]
[367108559,1750662655224,-490.0,0.00027397,3]
[367108560,1750662655235,-1599.78,0.00027397,3]
[367108561,1750662655245,-490.0,0.00027397,3]
[367108562,1750662655257,-1190.83,0.00027397,3]
[367108563,1750662655267,-795.18,0.00027397,3]
[367108564,1750662655278,-490.0,0.00027397,3]
[367108565,1750662655289,-8785.1,0.00027397,3]
[367108566,1750662655300,-638.67,0.00027397,3]
[367108567,1750662655310,-490.0,0.00027397,3]
[367108568,1750662655322,-849.6,0.00027397,3]
[367108569,1750662655333,-1583.66,0.00027397,3]
[367108570,1750662655345,-490.0,0.00027397,3]
[367108571,1750662655356,-490.0,0.00027397,3]
[367108572,1750662655367,-490.0,0.00027397,3]
[367108573,1750662655377,-1444.68,0.00027397,3]
[367108574,1750662655387,-491.63371151,0.00027397,3]
[367108575,1750662655398,-1335.88,0.00027397,3]
[367108576,1750662655409,-490.0,0.00027397,3]
[367108577,1750662655420,-507.9,0.00027397,3]
[367108578,1750662655431,-948.02,0.00027397,3]
[367108579,1750662655442,-490.0,0.00027397,3]
[367108580,1750662655452,-490.0,0.00027397,3]
[367108581,1750662655463,-490.0,0.00027397,3]
[367108582,1750662655475,-490.0,0.00027397,3]
[367108583,1750662655485,-490.0,0.00027397,3]
[367108584,1750662655496,-490.0,0.00027397,3]
[367108585,1750662655512,-3963.91,0.00027397,3]
[367108586,1750662655523,-490.0,0.00027397,3]
[367108587,1750662655534,-490.0,0.00027397,3]
[367108588,1750662655545,-1578.99,0.00027397,3]
[367108589,1750662655556,-490.0,0.00027397,3]
[367108590,1750662655567,-490.0,0.00027397,3]
[367108591,1750662655579,-490.0,0.00027397,3]
[367108592,1750662655589,-1445.82,0.00027397,3]
[367108593,1750662655600,-1285.59,0.00027397,3]
[367108594,1750662655610,-490.0,0.00027397,3]
[367108595,1750662655620,-490.0,0.00027397,3]
[367108596,1750662655631,-490.0,0.00027397,3]
[367108597,1750662655642,-490.0,0.00027397,3]
[367108598,1750662655653,-490.0,0.00027397,3]
[367108599,1750662655663,-490.0,0.00027397,3]
[367108600,1750662655674,-490.0,0.00027397,3]
[367108601,1750662655685,-490.0,0.00027397,3]
[367108602,1750662655695,-490.0,0.00027397,3]
[367108603,1750662655706,-728.45,0.00027397,3]
[367108604,1750662655717,-490.0,0.00027397,3]
[367108605,1750662655727,-806.96,0.00027397,3]
[367108606,1750662655737,-1797.81,0.00027397,3]
[367108607,1750662655748,-1831.64,0.00027397,3]
[367108608,1750662655759,-1432.05,0.00027397,3]
[367108609,1750662655770,-490.0,0.00027397,3]
[367108610,1750662655781,-919.07,0.00027397,3]
[367108611,1750662655791,-14900.62,0.00027397,3]
[367108612,1750662655802,-1833.67,0.00027397,3]
[367108613,1750662655815,-2078.39,0.00027397,3]
[367108614,1750662655827,-490.0,0.00027397,3]
[367108615,1750662655838,-510.45,0.00027397,3]
[367108616,1750662655848,-490.0,0.00027397,3]
[367108617,1750662655858,-490.0,0.00027397,3]
[367108618,1750662655869,-4833.93,0.00027397,3]
[367108619,1750662655880,-490.0,0.00027397,3]
[367108620,1750662655891,-1601.31,0.00027397,3]
[367108621,1750662655902,-759.06,0.00027397,3]
[367108622,1750662655912,-490.0,0.00027397,3]
[367108623,1750662655923,-993.54,0.00027397,3]
[367108624,1750662655934,-873.41,0.00027397,3]
[367108625,1750662655945,-791.68,0.00027397,3]
[367108626,1750662655955,-4669.42,0.00027397,3]
[367108627,1750662655965,-490.0,0.00027397,3]
[367108628,1750662655976,-1693.53,0.00027397,3]
[367108629,1750662655987,-990.18,0.00027397,3]
[367108630,1750662655998,-1034.99,0.00027397,3]
[367108631,1750662656008,-1620.6,0.00027397,3]
[367108632,1750662656019,-490.0,0.00027397,3]
[367108633,1750662656029,-1653.45,0.00027397,3]
[367108634,1750662656039,-490.0,0.00027397,3]